[Event "Early-Titled-Tuesday-Blitz-April-02-2024"]
[Site "Chess.com"]
[Date "2024.04.02"]
[Round "7"]
[White "Nf3c5"]
[Black "GnowReopard"]
[Result "1-0"]
[WhiteElo "2615"]
[BlackElo "2750"]
[TimeControl "180+1"]
[EndTime "9:16:32 PDT"]
[Termination "Nf3c5 won by resignation"]

1. e4 {[%clk 0:03:00.9]} 1... e6 {[%clk 0:02:59.6]} 2. d4 {[%clk 0:02:55.8]}
2... d5 {[%clk 0:02:59.7]} 3. Nd2 {[%clk 0:02:56.1]} 3... c5 {[%clk 0:02:59.2]}
4. exd5 {[%clk 0:02:55.9]} 4... Qxd5 {[%clk 0:02:59.1]} 5. Ngf3 {[%clk
0:02:56.4]} 5... cxd4 {[%clk 0:02:58.1]} 6. Bc4 {[%clk 0:02:57]} 6... Qd6 {[%clk
0:02:58.1]} 7. O-O {[%clk 0:02:57.9]} 7... Nc6 {[%clk 0:02:57.8]} 8. Nb3 {[%clk
0:02:58.3]} 8... Nf6 {[%clk 0:02:56.4]} 9. Qe2 {[%clk 0:02:58.7]} 9... a6 {[%clk
0:02:53.1]} 10. a4 {[%clk 0:02:57.3]} 10... Qc7 {[%clk 0:02:48]} 11. Rd1 {[%clk
0:02:54]} 11... Be7 {[%clk 0:02:45.9]} 12. Nbxd4 {[%clk 0:02:54.4]} 12... Nxd4
{[%clk 0:02:45.6]} 13. Rxd4 {[%clk 0:02:55.3]} 13... O-O {[%clk 0:02:36.3]} 14.
Bf4 {[%clk 0:02:40.6]} 14... Qc5 {[%clk 0:02:36.1]} 15. Rad1 {[%clk 0:02:31]}
15... b5 {[%clk 0:02:28.9]} 16. axb5 {[%clk 0:02:27]} 16... axb5 {[%clk
0:02:29.8]} 17. Bxb5 {[%clk 0:02:24]} 17... Bb7 {[%clk 0:02:29.5]} 18. Bd3
{[%clk 0:02:15.7]} 18... Nd5 {[%clk 0:02:18.7]} 19. Be5 {[%clk 0:02:09]} 19...
Bf6 {[%clk 0:02:11.6]} 20. Qe4 {[%clk 0:01:43.8]} 20... g6 {[%clk 0:01:48.2]}
21. Bxf6 {[%clk 0:01:40.2]} 21... Nxf6 {[%clk 0:01:48.5]} 22. Qxb7 {[%clk
0:01:39]} 22... Rfb8 {[%clk 0:01:49.2]} 23. Rc4 {[%clk 0:01:23]} 23... Rxb7
{[%clk 0:01:35]} 24. Rxc5 {[%clk 0:01:21.1]} 24... Rxb2 {[%clk 0:01:35.9]} 25.
h3 {[%clk 0:01:20.6]} 25... Ra7 {[%clk 0:01:29.2]} 26. Ne5 {[%clk 0:01:18.9]}
26... Kg7 {[%clk 0:01:27]} 27. Nc4 {[%clk 0:01:14.6]} 27... Rba2 {[%clk
0:01:24.8]} 28. Ne3 {[%clk 0:01:14.8]} 28... h5 {[%clk 0:01:22.4]} 29. g4 {[%clk
0:01:13.5]} 29... hxg4 {[%clk 0:01:21]} 30. hxg4 {[%clk 0:01:14.4]} 30... Nd7
{[%clk 0:01:21.2]} 31. Rb5 {[%clk 0:01:12.2]} 31... Rc7 {[%clk 0:01:19.4]} 32.
g5 {[%clk 0:01:11.4]} 32... Nc5 {[%clk 0:01:18.8]} 33. Kg2 {[%clk 0:01:09.9]}
33... Nxd3 {[%clk 0:01:17.5]} 34. Rxd3 {[%clk 0:01:08]} 34... Ra4 {[%clk
0:01:16.1]} 35. Kg3 {[%clk 0:01:06.1]} 35... Re4 {[%clk 0:01:11.5]} 36. c3
{[%clk 0:00:59]} 36... Ra7 {[%clk 0:01:07.8]} 37. Ng4 {[%clk 0:00:54.1]} 37...
Ra1 {[%clk 0:01:05.3]} 38. Nf6 {[%clk 0:00:53]} 38... Rg1+ {[%clk 0:01:04.5]}
39. Kf3 {[%clk 0:00:53.1]} 39... Rh4 {[%clk 0:01:00.8]} 40. Rd8 {[%clk
0:00:51.1]} 40... Rh3+ {[%clk 0:00:58.3]} 41. Ke2 {[%clk 0:00:51]} 41... Rxg5
{[%clk 0:00:53]} 42. Rxg5 {[%clk 0:00:45.9]} 42... Kxf6 {[%clk 0:00:53.6]} 43.
Rg3 {[%clk 0:00:46.5]} 1-0

[Event "Early-Titled-Tuesday-Blitz-April-02-2024"]
[Site "Chess.com"]
[Date "2024.04.02"]
[Round "7"]
[White "Road2GM3000"]
[Black "jk13"]
[Result "0-1"]
[WhiteElo "2453"]
[BlackElo "2716"]
[TimeControl "180+1"]
[EndTime "9:16:33 PDT"]
[Termination "jk13 won on time"]

1. d4 {[%clk 0:03:00.9]} 1... Nf6 {[%clk 0:03:00]} 2. c4 {[%clk 0:03:01.6]} 2...
e6 {[%clk 0:03:00.7]} 3. Nc3 {[%clk 0:03:02.3]} 3... Bb4 {[%clk 0:03:01.4]} 4.
Nf3 {[%clk 0:03:03]} 4... c5 {[%clk 0:03:01.4]} 5. g3 {[%clk 0:03:03]} 5...
Bxc3+ {[%clk 0:03:01.3]} 6. bxc3 {[%clk 0:03:03.2]} 6... Qa5 {[%clk 0:03:02.2]}
7. Qc2 {[%clk 0:03:01.1]} 7... b6 {[%clk 0:02:52.9]} 8. Bg2 {[%clk 0:03:01]}
8... Bb7 {[%clk 0:02:53.6]} 9. O-O {[%clk 0:03:01.5]} 9... Be4 {[%clk
0:02:52.5]} 10. Qb3 {[%clk 0:02:56.3]} 10... d6 {[%clk 0:02:49.6]} 11. Bf4
{[%clk 0:02:30.9]} 11... e5 {[%clk 0:02:30.7]} 12. dxe5 {[%clk 0:02:29.2]} 12...
dxe5 {[%clk 0:02:31.6]} 13. Bxe5 {[%clk 0:02:25.2]} 13... Nbd7 {[%clk
0:02:31.4]} 14. Bd6 {[%clk 0:02:22.6]} 14... Qa6 {[%clk 0:02:12.7]} 15. Rad1
{[%clk 0:02:16.7]} 15... Qb7 {[%clk 0:02:06.6]} 16. Qb2 {[%clk 0:02:05.9]} 16...
h6 {[%clk 0:01:59]} 17. Qd2 {[%clk 0:01:54.8]} 17... O-O-O {[%clk 0:01:52.3]}
18. Qf4 {[%clk 0:01:43.8]} 18... g5 {[%clk 0:01:47.8]} 19. Qd2 {[%clk
0:01:40.5]} 19... Rhe8 {[%clk 0:01:44.6]} 20. Rfe1 {[%clk 0:01:32.6]} 20... Qc6
{[%clk 0:01:44.7]} 21. Rf1 {[%clk 0:00:47.7]} 21... Nf8 {[%clk 0:01:28.4]} 22.
Ne1 {[%clk 0:00:12.5]} 22... Bxg2 {[%clk 0:01:25.4]} 23. Nxg2 {[%clk 0:00:13.4]}
23... Ne4 {[%clk 0:01:22.6]} 24. Qc2 {[%clk 0:00:09.2]} 24... Rxd6 {[%clk
0:01:20.4]} 25. Ne3 {[%clk 0:00:08.8]} 25... Nd7 {[%clk 0:01:06.3]} 26. Nf5
{[%clk 0:00:07.2]} 26... Rf6 {[%clk 0:00:58.6]} 27. g4 {[%clk 0:00:06.3]} 27...
h5 {[%clk 0:00:55.6]} 28. f3 {[%clk 0:00:06.2]} 28... Nd6 {[%clk 0:00:54.4]} 29.
Ng7 {[%clk 0:00:04]} 29... Re3 {[%clk 0:00:49.2]} 30. Nxh5 {[%clk 0:00:04.1]}
30... Rfe6 {[%clk 0:00:49.5]} 31. Rd2 {[%clk 0:00:04.5]} 31... Nxc4 {[%clk
0:00:49.3]} 0-1

[Event "Early-Titled-Tuesday-Blitz-April-02-2024"]
[Site "Chess.com"]
[Date "2024.04.02"]
[Round "7"]
[White "AsaHoffmann"]
[Black "NowInChess"]
[Result "1-0"]
[WhiteElo "2401"]
[BlackElo "2257"]
[TimeControl "180+1"]
[EndTime "9:16:33 PDT"]
[Termination "AsaHoffmann won on time"]

1. d4 {[%clk 0:02:59.3]} 1... Nf6 {[%clk 0:02:59.6]} 2. Bg5 {[%clk 0:02:54.9]}
2... e6 {[%clk 0:02:58.6]} 3. Nd2 {[%clk 0:02:54.5]} 3... h6 {[%clk 0:02:58]} 4.
Bh4 {[%clk 0:02:54.4]} 4... b6 {[%clk 0:02:52.8]} 5. e4 {[%clk 0:02:51.5]} 5...
g5 {[%clk 0:02:48.5]} 6. Bg3 {[%clk 0:02:51.3]} 6... Bb7 {[%clk 0:02:45.3]} 7.
f3 {[%clk 0:02:51.1]} 7... Bg7 {[%clk 0:02:42.9]} 8. Bd3 {[%clk 0:02:50.8]} 8...
Nh5 {[%clk 0:02:40.6]} 9. Ne2 {[%clk 0:02:49.6]} 9... d6 {[%clk 0:02:35.5]} 10.
Bf2 {[%clk 0:02:49.3]} 10... Nd7 {[%clk 0:02:31.8]} 11. c3 {[%clk 0:02:49.1]}
11... Qe7 {[%clk 0:02:29.2]} 12. g4 {[%clk 0:02:44.5]} 12... Nf4 {[%clk
0:02:23.1]} 13. Nxf4 {[%clk 0:02:42.6]} 13... gxf4 {[%clk 0:02:24]} 14. Qa4
{[%clk 0:02:35.9]} 14... c6 {[%clk 0:01:30.8]} 15. h4 {[%clk 0:02:28.5]} 15...
a5 {[%clk 0:01:26.5]} 16. c4 {[%clk 0:02:22.7]} 16... O-O {[%clk 0:01:18.5]} 17.
Qc2 {[%clk 0:02:15.8]} 17... e5 {[%clk 0:01:13.8]} 18. d5 {[%clk 0:02:14.2]}
18... Rac8 {[%clk 0:00:54.8]} 19. Qd1 {[%clk 0:02:03.3]} 19... Nc5 {[%clk
0:00:49.3]} 20. Qe2 {[%clk 0:02:02.9]} 20... Nxd3+ {[%clk 0:00:47.7]} 21. Qxd3
{[%clk 0:02:02.9]} 21... Ba6 {[%clk 0:00:47.6]} 22. b3 {[%clk 0:02:01.1]} 22...
b5 {[%clk 0:00:36.4]} 23. Rc1 {[%clk 0:01:50]} 23... bxc4 {[%clk 0:00:34.4]} 24.
Nxc4 {[%clk 0:01:41.4]} 24... cxd5 {[%clk 0:00:33.4]} 25. Qxd5 {[%clk
0:01:38.7]} 25... a4 {[%clk 0:00:24.7]} 26. O-O {[%clk 0:01:37.5]} 26... axb3
{[%clk 0:00:23.3]} 27. axb3 {[%clk 0:01:37.3]} 27... Rfd8 {[%clk 0:00:12.2]} 28.
Rfd1 {[%clk 0:01:36.3]} 28... Bf8 {[%clk 0:00:08]} 29. Ra1 {[%clk 0:01:34.3]}
29... Bxc4 {[%clk 0:00:06.7]} 30. bxc4 {[%clk 0:01:34]} 30... Qc7 {[%clk
0:00:06.7]} 31. Ra4 {[%clk 0:01:32.1]} 31... Qd7 {[%clk 0:00:05.8]} 32. Rb4
{[%clk 0:01:28.2]} 32... h5 {[%clk 0:00:05]} 33. g5 {[%clk 0:01:11.1]} 33... Qh3
{[%clk 0:00:05.9]} 34. Qd3 {[%clk 0:01:10.6]} 34... f6 {[%clk 0:00:03.2]} 35.
gxf6 {[%clk 0:01:07.8]} 35... Kh7 {[%clk 0:00:03.3]} 36. Qf1 {[%clk 0:01:04.8]}
36... Qe6 {[%clk 0:00:01.6]} 37. Qg2 {[%clk 0:01:03.2]} 1-0

[Event "Early-Titled-Tuesday-Blitz-April-02-2024"]
[Site "Chess.com"]
[Date "2024.04.02"]
[Round "7"]
[White "Savagelittlemole"]
[Black "sebsep"]
[Result "1-0"]
[WhiteElo "2534"]
[BlackElo "2600"]
[TimeControl "180+1"]
[EndTime "9:16:34 PDT"]
[Termination "Savagelittlemole won by resignation"]

1. e4 {[%clk 0:03:00.9]} 1... e5 {[%clk 0:02:59.8]} 2. Nf3 {[%clk 0:03:01]} 2...
Nc6 {[%clk 0:03:00.3]} 3. Bb5 {[%clk 0:03:01]} 3... a6 {[%clk 0:03:00.6]} 4.
Bxc6 {[%clk 0:03:01]} 4... dxc6 {[%clk 0:03:00.5]} 5. O-O {[%clk 0:03:00.1]}
5... Qf6 {[%clk 0:03:01]} 6. h3 {[%clk 0:02:54.2]} 6... Bc5 {[%clk 0:02:58.4]}
7. d4 {[%clk 0:02:51.1]} 7... exd4 {[%clk 0:02:56.4]} 8. Nbd2 {[%clk 0:02:35.3]}
8... Ne7 {[%clk 0:02:50.4]} 9. Nb3 {[%clk 0:02:34.7]} 9... Bb6 {[%clk
0:02:50.3]} 10. Nbxd4 {[%clk 0:02:27.1]} 10... h6 {[%clk 0:02:41.6]} 11. Be3
{[%clk 0:02:11.4]} 11... O-O {[%clk 0:02:38]} 12. Qd3 {[%clk 0:02:08.3]} 12...
Ng6 {[%clk 0:02:34.9]} 13. c4 {[%clk 0:01:59.3]} 13... Rd8 {[%clk 0:02:30.7]}
14. e5 {[%clk 0:01:11.3]} 14... Nxe5 {[%clk 0:02:10.3]} 15. Nxe5 {[%clk
0:01:11.4]} 15... Qxe5 {[%clk 0:02:11.2]} 16. Nxc6 {[%clk 0:01:08.2]} 16... Rxd3
{[%clk 0:01:53.4]} 17. Nxe5 {[%clk 0:01:06.7]} 17... Rd8 {[%clk 0:01:39.3]} 18.
c5 {[%clk 0:00:51.7]} 18... Ba5 {[%clk 0:01:38.3]} 19. Nc4 {[%clk 0:00:51.6]}
19... b6 {[%clk 0:01:31.5]} 20. cxb6 {[%clk 0:00:45]} 20... cxb6 {[%clk
0:01:30.5]} 21. Bxb6 {[%clk 0:00:39.1]} 21... Bxb6 {[%clk 0:01:28]} 22. Nxb6
{[%clk 0:00:40]} 22... Rb8 {[%clk 0:01:25.8]} 23. Nxc8 {[%clk 0:00:40.2]} 23...
Rdxc8 {[%clk 0:01:26.7]} 24. b3 {[%clk 0:00:30]} 24... Rc2 {[%clk 0:01:26.5]}
25. Rfc1 {[%clk 0:00:24.8]} 25... Rbc8 {[%clk 0:01:26.5]} 26. Rxc2 {[%clk
0:00:23.1]} 26... Rxc2 {[%clk 0:01:27.4]} 27. a3 {[%clk 0:00:20]} 27... Rb2
{[%clk 0:01:17.9]} 28. b4 {[%clk 0:00:20.3]} 28... Kf8 {[%clk 0:01:09.1]} 29.
Re1 {[%clk 0:00:20.4]} 29... f5 {[%clk 0:00:59.3]} 30. Re3 {[%clk 0:00:19.3]}
30... Kf7 {[%clk 0:00:56.3]} 31. g3 {[%clk 0:00:17.2]} 31... g5 {[%clk
0:00:55.4]} 32. Kg2 {[%clk 0:00:17.6]} 32... Kf6 {[%clk 0:00:54.9]} 33. Rc3
{[%clk 0:00:17.2]} 1-0

[Event "Early-Titled-Tuesday-Blitz-April-02-2024"]
[Site "Chess.com"]
[Date "2024.04.02"]
[Round "7"]
[White "DeArron_Fox"]
[Black "SahibSinghKnight"]
[Result "0-1"]
[WhiteElo "2502"]
[BlackElo "2602"]
[TimeControl "180+1"]
[EndTime "9:16:37 PDT"]
[Termination "SahibSinghKnight won on time"]

1. d4 {[%clk 0:03:00.9]} 1... e6 {[%clk 0:02:55.8]} 2. c4 {[%clk 0:02:54.2]}
2... d5 {[%clk 0:02:55.7]} 3. Nc3 {[%clk 0:02:53.4]} 3... c6 {[%clk 0:02:56.2]}
4. e3 {[%clk 0:02:53.2]} 4... Nf6 {[%clk 0:02:52.2]} 5. Nf3 {[%clk 0:02:53.5]}
5... Bd6 {[%clk 0:02:49.2]} 6. Bd3 {[%clk 0:02:53.4]} 6... dxc4 {[%clk
0:02:48.5]} 7. Bxc4 {[%clk 0:02:53.3]} 7... b5 {[%clk 0:02:49]} 8. Bd3 {[%clk
0:02:53.6]} 8... Bb7 {[%clk 0:02:49.2]} 9. e4 {[%clk 0:02:53.8]} 9... Bb4 {[%clk
0:02:39]} 10. O-O {[%clk 0:02:36.7]} 10... Nbd7 {[%clk 0:02:38.4]} 11. e5 {[%clk
0:02:23.4]} 11... Nd5 {[%clk 0:02:23.8]} 12. Nxd5 {[%clk 0:02:16.7]} 12... exd5
{[%clk 0:02:22.2]} 13. Ng5 {[%clk 0:00:55.9]} 13... Nf8 {[%clk 0:02:16.6]} 14.
f4 {[%clk 0:00:42]} 14... h6 {[%clk 0:02:08.2]} 15. Nf3 {[%clk 0:00:42]} 15...
Ba5 {[%clk 0:01:57.3]} 16. f5 {[%clk 0:00:39.7]} 16... Bb6 {[%clk 0:01:55.7]}
17. Kh1 {[%clk 0:00:37.6]} 17... Qc7 {[%clk 0:01:52.8]} 18. a4 {[%clk
0:00:25.3]} 18... b4 {[%clk 0:01:46.2]} 19. e6 {[%clk 0:00:16.3]} 19... fxe6
{[%clk 0:01:35.2]} 20. fxe6 {[%clk 0:00:16.3]} 20... O-O-O {[%clk 0:01:32.2]}
21. a5 {[%clk 0:00:16]} 21... Bxa5 {[%clk 0:01:31.9]} 22. e7 {[%clk 0:00:16.4]}
22... Re8 {[%clk 0:01:27.8]} 23. exf8=Q {[%clk 0:00:08.2]} 23... Rhxf8 {[%clk
0:01:28.7]} 24. Ne5 {[%clk 0:00:05.3]} 24... Bb6 {[%clk 0:01:28.6]} 25. Be3
{[%clk 0:00:02.4]} 25... Rxf1+ {[%clk 0:01:27.1]} 26. Qxf1 {[%clk 0:00:03.3]}
26... Rxe5 {[%clk 0:01:26.6]} 27. dxe5 {[%clk 0:00:02.7]} 27... Bxe3 {[%clk
0:01:26.6]} 28. Qf8+ {[%clk 0:00:03.2]} 28... Qd8 {[%clk 0:01:27.1]} 29. Bf5+
{[%clk 0:00:03.4]} 29... Kc7 {[%clk 0:01:26.8]} 30. Qxg7+ {[%clk 0:00:03.7]}
30... Kb6 {[%clk 0:01:26.7]} 31. e6 {[%clk 0:00:04]} 31... Bg5 {[%clk
0:01:25.6]} 32. Qd4+ {[%clk 0:00:03.2]} 32... c5 {[%clk 0:01:26.2]} 33. Qe5
{[%clk 0:00:03.4]} 33... Bf6 {[%clk 0:01:26.7]} 34. Qf4 {[%clk 0:00:03.3]} 34...
d4 {[%clk 0:01:26.9]} 35. Qxh6 {[%clk 0:00:03.3]} 35... Qd5 {[%clk 0:01:27.4]}
36. Bh3 {[%clk 0:00:02.7]} 36... Be7 {[%clk 0:01:26.7]} 37. Qh7 {[%clk
0:00:02.6]} 37... Qd6 {[%clk 0:01:25.3]} 38. Qd3 {[%clk 0:00:02.4]} 38... a5
{[%clk 0:01:25.4]} 39. Rf1 {[%clk 0:00:02.4]} 39... Ba6 {[%clk 0:01:25.5]} 40.
Qd1 {[%clk 0:00:02.2]} 40... Bxf1 {[%clk 0:01:26]} 41. Qxf1 {[%clk 0:00:03.1]}
41... d3 {[%clk 0:01:26.9]} 42. Bf5 {[%clk 0:00:02.3]} 42... d2 {[%clk
0:01:27.2]} 43. Qd1 {[%clk 0:00:02.4]} 43... Qe5 {[%clk 0:01:24.8]} 44. Bc2
{[%clk 0:00:02]} 44... Qe1+ {[%clk 0:01:24.6]} 0-1

[Event "Early-Titled-Tuesday-Blitz-April-02-2024"]
[Site "Chess.com"]
[Date "2024.04.02"]
[Round "7"]
[White "Bob_2004"]
[Black "GlavkonVVS"]
[Result "0-1"]
[WhiteElo "2355"]
[BlackElo "2640"]
[TimeControl "180+1"]
[EndTime "9:16:38 PDT"]
[Termination "GlavkonVVS won on time"]

1. d4 {[%clk 0:02:59]} 1... Nf6 {[%clk 0:03:00.5]} 2. c4 {[%clk 0:02:58.6]} 2...
c5 {[%clk 0:02:58.6]} 3. d5 {[%clk 0:02:58.5]} 3... e6 {[%clk 0:02:57]} 4. Nc3
{[%clk 0:02:58.3]} 4... exd5 {[%clk 0:02:57.3]} 5. cxd5 {[%clk 0:02:59.2]} 5...
d6 {[%clk 0:02:57.9]} 6. e4 {[%clk 0:02:59.8]} 6... g6 {[%clk 0:02:58.6]} 7. f4
{[%clk 0:03:00.1]} 7... Bg7 {[%clk 0:02:59.2]} 8. e5 {[%clk 0:03:00]} 8... Nfd7
{[%clk 0:02:49.6]} 9. Ne4 {[%clk 0:02:56.5]} 9... dxe5 {[%clk 0:02:47.9]} 10.
Nd6+ {[%clk 0:02:56.4]} 10... Kf8 {[%clk 0:02:47.9]} 11. Nf3 {[%clk 0:02:44.3]}
11... h6 {[%clk 0:02:24.7]} 12. Be2 {[%clk 0:02:14.1]} 12... exf4 {[%clk
0:01:58.6]} 13. O-O {[%clk 0:01:59.7]} 13... g5 {[%clk 0:01:51.6]} 14. Nf5
{[%clk 0:01:10.3]} 14... Nf6 {[%clk 0:01:50.7]} 15. Nxg7 {[%clk 0:01:02.5]}
15... Kxg7 {[%clk 0:01:50.8]} 16. d6 {[%clk 0:00:53.2]} 16... Nc6 {[%clk
0:01:45.2]} 17. b3 {[%clk 0:00:53.2]} 17... Ne4 {[%clk 0:01:36.9]} 18. Bb2+
{[%clk 0:00:49.7]} 18... f6 {[%clk 0:01:36.9]} 19. Qd5 {[%clk 0:00:35.7]} 19...
Re8 {[%clk 0:01:21.8]} 20. Bc4 {[%clk 0:00:14.1]} 20... Nxd6 {[%clk 0:01:16.8]}
21. Rad1 {[%clk 0:00:12.4]} 21... Nxc4 {[%clk 0:01:04.9]} 22. Qxc4 {[%clk
0:00:11.1]} 22... Qb6 {[%clk 0:00:51.8]} 23. h4 {[%clk 0:00:06]} 23... Be6
{[%clk 0:00:51.5]} 24. Qc3 {[%clk 0:00:05.5]} 24... Nd4 {[%clk 0:00:47]} 25.
hxg5 {[%clk 0:00:04]} 25... hxg5 {[%clk 0:00:46.7]} 26. Nxd4 {[%clk 0:00:02.7]}
26... cxd4 {[%clk 0:00:46.8]} 27. Rxd4 {[%clk 0:00:03]} 27... Rac8 {[%clk
0:00:43.8]} 0-1

[Event "Early-Titled-Tuesday-Blitz-April-02-2024"]
[Site "Chess.com"]
[Date "2024.04.02"]
[Round "7"]
[White "emeli_chess"]
[Black "ExtremeLearner"]
[Result "1-0"]
[WhiteElo "2425"]
[BlackElo "2549"]
[TimeControl "180+1"]
[EndTime "9:16:45 PDT"]
[Termination "emeli_chess won by resignation"]

1. d4 {[%clk 0:02:57.7]} 1... Nf6 {[%clk 0:02:56.2]} 2. c4 {[%clk 0:02:56.2]}
2... c5 {[%clk 0:02:57.1]} 3. d5 {[%clk 0:02:56]} 3... b5 {[%clk 0:02:57.4]} 4.
cxb5 {[%clk 0:02:56.1]} 4... a6 {[%clk 0:02:58]} 5. b6 {[%clk 0:02:56.8]} 5...
d6 {[%clk 0:02:54.3]} 6. Nc3 {[%clk 0:02:57.7]} 6... Nbd7 {[%clk 0:02:54.6]} 7.
a4 {[%clk 0:02:57.3]} 7... Nxb6 {[%clk 0:02:53.2]} 8. a5 {[%clk 0:02:56.6]} 8...
Nbd7 {[%clk 0:02:51.4]} 9. e4 {[%clk 0:02:56.1]} 9... g6 {[%clk 0:02:52.1]} 10.
Nf3 {[%clk 0:02:55.6]} 10... Bg7 {[%clk 0:02:52.7]} 11. Be2 {[%clk 0:02:55.9]}
11... O-O {[%clk 0:02:52.9]} 12. O-O {[%clk 0:02:56.2]} 12... Ne8 {[%clk
0:02:53.1]} 13. Nd2 {[%clk 0:02:49.5]} 13... Nc7 {[%clk 0:02:52.8]} 14. Nc4
{[%clk 0:02:49.3]} 14... Nb5 {[%clk 0:02:52]} 15. Na4 {[%clk 0:02:47.8]} 15...
Rb8 {[%clk 0:02:41.8]} 16. Bd2 {[%clk 0:02:46.1]} 16... Nd4 {[%clk 0:02:39.3]}
17. Ra3 {[%clk 0:02:35.2]} 17... Ne5 {[%clk 0:02:15.9]} 18. Ncb6 {[%clk
0:02:33.3]} 18... f5 {[%clk 0:02:07.8]} 19. exf5 {[%clk 0:02:27.5]} 19... Bxf5
{[%clk 0:02:04.7]} 20. Bxa6 {[%clk 0:02:14.8]} 20... Bc2 {[%clk 0:01:57.2]} 21.
Qc1 {[%clk 0:02:02.6]} 21... e6 {[%clk 0:01:33.2]} 22. Bc3 {[%clk 0:01:55]}
22... Ndf3+ {[%clk 0:01:29.5]} 23. Kh1 {[%clk 0:01:36.6]} 23... Qh4 {[%clk
0:01:26.4]} 24. h3 {[%clk 0:01:36.3]} 24... Be4 {[%clk 0:01:17.2]} 25. dxe6
{[%clk 0:01:11.6]} 25... Ng4 {[%clk 0:00:30.6]} 26. Bxg7 {[%clk 0:01:03.9]}
26... Kxg7 {[%clk 0:00:30.2]} 27. Nd7 {[%clk 0:00:49.3]} 27... Nxf2+ {[%clk
0:00:27.9]} 28. Rxf2 {[%clk 0:00:48.4]} 28... Qxf2 {[%clk 0:00:22.4]} 29. Nxf8
{[%clk 0:00:47.2]} 29... Rxb2 {[%clk 0:00:09.7]} 30. Qxb2+ {[%clk 0:00:46.3]}
30... Qxb2 {[%clk 0:00:09.3]} 31. Nxb2 {[%clk 0:00:46.3]} 1-0

[Event "Early-Titled-Tuesday-Blitz-April-02-2024"]
[Site "Chess.com"]
[Date "2024.04.02"]
[Round "7"]
[White "viviania"]
[Black "Al_Shima"]
[Result "1-0"]
[WhiteElo "2901"]
[BlackElo "2495"]
[TimeControl "180+1"]
[EndTime "9:16:47 PDT"]
[Termination "viviania won on time"]

1. Nf3 {[%clk 0:02:53]} 1... d5 {[%clk 0:02:58.8]} 2. g3 {[%clk 0:02:53.1]} 2...
g6 {[%clk 0:02:57.9]} 3. Bg2 {[%clk 0:02:51.7]} 3... Bg7 {[%clk 0:02:58.4]} 4.
d4 {[%clk 0:02:52]} 4... Nf6 {[%clk 0:02:58]} 5. c4 {[%clk 0:02:49.4]} 5... e6
{[%clk 0:02:55.6]} 6. Nc3 {[%clk 0:02:47.8]} 6... O-O {[%clk 0:02:55.4]} 7. O-O
{[%clk 0:02:48.3]} 7... b6 {[%clk 0:02:38.9]} 8. cxd5 {[%clk 0:02:39.2]} 8...
exd5 {[%clk 0:02:37.3]} 9. Bf4 {[%clk 0:02:39]} 9... Bb7 {[%clk 0:02:37.2]} 10.
Rc1 {[%clk 0:02:38.9]} 10... c6 {[%clk 0:02:34.6]} 11. Ne5 {[%clk 0:02:36.4]}
11... Nbd7 {[%clk 0:02:28.6]} 12. e4 {[%clk 0:02:36.4]} 12... Rc8 {[%clk
0:01:31]} 13. Nxd7 {[%clk 0:02:27.4]} 13... Qxd7 {[%clk 0:01:26.2]} 14. e5
{[%clk 0:02:27.4]} 14... Nh5 {[%clk 0:01:21.9]} 15. Be3 {[%clk 0:02:24.5]} 15...
f5 {[%clk 0:01:10]} 16. Ne2 {[%clk 0:02:12]} 16... Rce8 {[%clk 0:01:02.3]} 17.
Bf3 {[%clk 0:02:08.5]} 17... Qf7 {[%clk 0:00:49.2]} 18. Bxh5 {[%clk 0:02:00]}
18... gxh5 {[%clk 0:00:50.1]} 19. Nf4 {[%clk 0:01:59.8]} 19... c5 {[%clk
0:00:40]} 20. Re1 {[%clk 0:01:50.8]} 20... h4 {[%clk 0:00:34.8]} 21. e6 {[%clk
0:01:30.2]} 21... Qe7 {[%clk 0:00:24.3]} 22. dxc5 {[%clk 0:01:27.4]} 22... d4
{[%clk 0:00:23.6]} 23. Bd2 {[%clk 0:00:45]} 23... bxc5 {[%clk 0:00:23.6]} 24. b4
{[%clk 0:00:43.6]} 24... cxb4 {[%clk 0:00:20.4]} 25. Qa4 {[%clk 0:00:43.4]}
25... a5 {[%clk 0:00:08.9]} 26. Qxa5 {[%clk 0:00:42.6]} 26... Qf6 {[%clk
0:00:01.4]} 27. Bxb4 {[%clk 0:00:30.5]} 1-0

[Event "Early-Titled-Tuesday-Blitz-April-02-2024"]
[Site "Chess.com"]
[Date "2024.04.02"]
[Round "7"]
[White "chessdjw"]
[Black "ketster"]
[Result "1-0"]
[WhiteElo "2799"]
[BlackElo "2611"]
[TimeControl "180+1"]
[EndTime "9:16:49 PDT"]
[Termination "chessdjw won on time"]

1. d4 {[%clk 0:03:00.9]} 1... e6 {[%clk 0:02:57.8]} 2. Nf3 {[%clk 0:03:00.4]}
2... Nf6 {[%clk 0:02:57]} 3. c4 {[%clk 0:02:59.9]} 3... b6 {[%clk 0:02:53.5]} 4.
a3 {[%clk 0:02:59.8]} 4... Ba6 {[%clk 0:02:49.5]} 5. Qc2 {[%clk 0:02:59.7]} 5...
Bb7 {[%clk 0:02:48.7]} 6. Nc3 {[%clk 0:03:00.4]} 6... c5 {[%clk 0:02:48.6]} 7.
e4 {[%clk 0:03:00.7]} 7... cxd4 {[%clk 0:02:48.9]} 8. Nxd4 {[%clk 0:03:01.6]}
8... Bc5 {[%clk 0:02:49.1]} 9. Nf3 {[%clk 0:03:00.9]} 9... Ng4 {[%clk
0:02:45.7]} 10. Bg5 {[%clk 0:02:57.9]} 10... f6 {[%clk 0:02:44.4]} 11. Bh4
{[%clk 0:02:56.8]} 11... Nc6 {[%clk 0:02:43.9]} 12. Be2 {[%clk 0:02:51.9]} 12...
a5 {[%clk 0:02:35.3]} 13. Rd1 {[%clk 0:02:48.8]} 13... O-O {[%clk 0:02:27.3]}
14. O-O {[%clk 0:02:46.8]} 14... Qe8 {[%clk 0:02:20.9]} 15. Nb5 {[%clk
0:02:34.4]} 15... Qe7 {[%clk 0:02:03.8]} 16. Bg3 {[%clk 0:02:27.3]} 16... Nge5
{[%clk 0:01:59]} 17. Kh1 {[%clk 0:02:14.7]} 17... Rad8 {[%clk 0:01:47.8]} 18.
Ne1 {[%clk 0:02:08.1]} 18... g5 {[%clk 0:01:35.7]} 19. Nd3 {[%clk 0:01:58.8]}
19... d6 {[%clk 0:01:23.7]} 20. f4 {[%clk 0:01:54.5]} 20... gxf4 {[%clk
0:01:20.6]} 21. Nxf4 {[%clk 0:01:54.3]} 21... Kh8 {[%clk 0:01:13.9]} 22. Bh4
{[%clk 0:01:50.7]} 22... Ng6 {[%clk 0:00:58.2]} 23. Nxg6+ {[%clk 0:01:38.1]}
23... hxg6 {[%clk 0:00:59.1]} 24. Qc3 {[%clk 0:01:36.2]} 24... Ne5 {[%clk
0:00:50.9]} 25. b4 {[%clk 0:01:33.9]} 25... axb4 {[%clk 0:00:43.1]} 26. axb4
{[%clk 0:01:34.8]} 26... Bxe4 {[%clk 0:00:39.5]} 27. bxc5 {[%clk 0:01:32.9]}
27... bxc5 {[%clk 0:00:38.2]} 28. Nxd6 {[%clk 0:01:16.5]} 28... Rxd6 {[%clk
0:00:20.7]} 29. Qxe5 {[%clk 0:01:14.9]} 29... Rxd1 {[%clk 0:00:15.3]} 30. Rxd1
{[%clk 0:01:12.4]} 30... Bxg2+ {[%clk 0:00:10.4]} 31. Kxg2 {[%clk 0:01:04.2]}
31... Qb7+ {[%clk 0:00:09.9]} 32. Bf3 {[%clk 0:01:04.8]} 32... Qxf3+ {[%clk
0:00:06.1]} 33. Kxf3 {[%clk 0:01:04.6]} 33... fxe5+ {[%clk 0:00:06.9]} 34. Kg4
{[%clk 0:00:57.3]} 34... Rf4+ {[%clk 0:00:06.9]} 35. Kg5 {[%clk 0:00:57.9]}
35... Rxc4 {[%clk 0:00:02.7]} 36. Kxg6 {[%clk 0:00:57.2]} 36... Rg4+ {[%clk
0:00:01.1]} 37. Bg5 {[%clk 0:00:57]} 37... Rd4 {[%clk 0:00:01]} 38. Ra1 {[%clk
0:00:55.6]} 1-0